[Event "SixDays Budapest March GM-B 2023"]
[Site "Budapest"]
[Date "2023.03.25"]
[Round "2.1"]
[White "Vantika Agrawal"]
[Black "Pribelszky, Bence"]
[Result "1/2-1/2"]
[ECO "E18"]
[WhiteElo "2367"]
[BlackElo "2380"]
[Annotator "TA"]
[PlyCount "172"]
[EventDate "2023.03.24"]
[EventType "tourn"]
[EventCountry "HUN"]
[SourceTitle "playchess.com"]
[Source "ChessBase"]
[SourceQuality "1"]
[TimeControl "5400+30"]

{[%evp 15,171,2,27,26,23,29,34,30,29,22,46,46,62,41,35,26,64,60,60,30,44,44,52,44,60,52,52,52,52,52,55,55,55,29,29,29,29,29,29,29,29,29,29,29,29,2,58,0,64,64,64,28,43,28,28,28,50,50,50,50,50,50,102,55,50,32,51,35,125,64,63,68,112,112,112,0,112,108,100,66,100,100,60,61,72,0,72,0,0,0,0,0,0,0,0,-290,-283,-283,-275,-712,-735,-735,-735,-719,-697,-979,-961,-949,-766,-606,-332,-2108,-1610,-1582,-317,-269,0,-552,-562,-415,-72,-72,-72,-296,-262,-236,-236,-236,-66,-66,-66,-66,-66,-68,-68,-67,-67,-66,0,0,0,0,0,0,0,0,0,0,0,0,-2,-2,-2,-2,-2,-2,0,0]} 1. d4 {[%emt 0:00:32]} e6 {[%emt 0:02:47]} 2. c4 {[%emt 0:00:18]} b6 {[%emt 0:00:05]} 3. g3 {[%emt 0:00:44]} Bb7 {[%emt 0:00:11]} 4. Nf3 {[%emt 0:00:05]} Nf6 {[%emt 0:06:26]} 5. Bg2 {[%emt 0:00:06]} Be7 {[%emt 0:00:36]} 6. O-O {[%emt 0:03:44]} O-O {[%emt 0:00:07]} 7. Nc3 {[%emt 0:01:25]} Ne4 {[%emt 0:00:05]} 8. Bd2 {[%emt 0:00:14]} f5 {[%emt 0:00:05]} 9. Ne5 {[%emt 0:01:14] E18: Queen's Indian: Old Main Line (4 g3 Bb7 5 Bg2 Be7 6 0-0 0-0 7 Nc3).} Nxc3 {[%emt 0:00:40]} 10. Bxc3 {[%emt 0:00:33]} Bxg2 {[%emt 0:00:07]} 11. Kxg2 {[%emt 0:00:04] White is slightly better.} Bf6 {[%emt 0:00:54]} 12. Qd3 {[%emt 0:07:25]} d5 {[%emt 0:08:42]} 13. Rfd1 {[%emt 0:07:18]} c6 {[%emt 0:08:13]} 14. Rac1 {[%emt 0:09:06] White is more active.} Bxe5 {[%emt 0:08:45]} 15. dxe5 {[%emt 0:00:10]} Na6 {[%emt 0:00:04] [#]} 16. b4 $146 {[%emt 0:06:20]} ({Predecessor:} 16. f3 Nc5 17. Qe3 Na6 18. cxd5 cxd5 19. Bd4 Qe7 20. Rc3 Rfc8 21. Rdc1 Qd7 22. a3 Rxc3 23. Qxc3 {½-½ Haug,J (2431)-Ranaldi,L (2262) NOR-ch Larvik 2019 (1)}) 16... Nc7 {[%emt 0:01:09] Black is weak on the dark squares} 17. a4 {[%emt 0:14:44]} (17. Bd2 $5 {[%cal Rc4d5]}) 17... Qe7 {[%emt 0:04:20]} 18. Bd2 {[%emt 0:04:39]} Rfd8 {[%emt 0:04:10]} 19. h4 {[%emt 0:06:24]} Qf8 {[%emt 0:10:25]} 20. Bg5 {[%emt 0:05:28]} Rd7 {[%emt 0:00:21]} 21. c5 {[%emt 0:03:18]} b5 {[%emt 0:03:35]} 22. a5 {[%emt 0:05:26]} d4 {[%emt 0:07:07]} 23. Qf3 {[%emt 0:02:45]} Rd5 $1 {[%emt 0:00:35]} 24. h5 {[%emt 0:03:50][%cal Oh5h6]} h6 {[%emt 0:08:15]} 25. Bf4 {[%emt 0:01:53]} Qf7 {[%emt 0:00:03]} 26. Rd3 {[%emt 0:00:44]} Rad8 {[%emt 0:00:58]} 27. Rcd1 {[%emt 0:01:46]} Na6 {[%emt 0:01:02]} 28. Rb1 {[%emt 0:01:30]} R8d7 {[%emt 0:00:42]} 29. Rb2 {[%emt 0:00:52]} Kf8 {[%emt 0:00:14]} 30. g4 {[%emt 0:03:38]} Nc7 {[%emt 0:10:21]} (30... g5 $1 $11 31. hxg6 Qxg6) 31. Rbd2 {[%emt 0:02:38]} (31. Rb1 $14) 31... fxg4 {[%emt 0:01:27]} (31... Na6 $11 32. Rb2 g5 33. hxg6 Qxg6) 32. Qxg4 $14 {[%emt 0:00:08]} Qf5 $1 {[%emt 0:00:03]} 33. Qh4 {[%emt 0:07:04][%cal Of4h6]} Qe4+ {[%emt 0:00:03]} 34. f3 {[%emt 0:00:49]} Qf5 {[%emt 0:00:01]} 35. Bg3 {[%emt 0:00:26][%cal Rd3d4]} Qg5 {[%emt 0:04:58]} 36. Qxg5 {[%emt 0:00:37]} (36. Rxd4 $2 Qxh4 37. Rxd5 Rxd5 $19) 36... hxg5 {[%emt 0:00:02]} 37. Kh3 {[%emt 0:00:28]} Na6 $1 {[%emt 0:02:15]} 38. Rb2 {[%emt 0:00:08] And now Kg4 would win.} g6 {[%emt 0:00:03]} (38... Rf7 $14) 39. Kg4 {[%emt 0:00:52]} (39. hxg6 Kg7 $14) (39. h6 $1 $16) 39... gxh5+ {[%emt 0:00:05]} 40. Kxh5 {[%emt 0:00:09]} Rh7+ {[%emt 0:00:51]} 41. Kxg5 {[%emt 0:00:53]} (41. Kg4 $5 {[%cal Rg4g5]}) 41... Rh1 {[%emt 0:01:57]} (41... Nc7 $14) 42. Kf4 {[%emt 0:00:30]} (42. Bf2 $1 $16) 42... Rc1 {[%emt 0:03:35]} 43. Ke4 $1 {[%emt 0:00:28]} Rc4 {[%emt 0:01:34]} 44. Be1 {[%emt 0:00:12]} Nc7 {[%emt 0:00:02]} 45. Bf2 {[%emt 0:00:50]} ({White should play} 45. Rb1 $16) 45... Rd7 {[%emt 0:00:49]} (45... Na6 $11) 46. Rxd4 $16 {[%emt 0:00:21]} Rdxd4+ {[%emt 0:00:05]} 47. Bxd4 {[%emt 0:00:03][%mdl 4096] Endgame KRB-KRN} Nd5 {[%emt 0:00:05]} 48. e3 {[%emt 0:00:28]} Nxb4 {[%emt 0:00:42]} 49. Rh2 {[%emt 0:00:22]} Na6 {[%emt 0:01:06]} 50. Kf4 {[%emt 0:01:12]} (50. Rh7 $16) 50... Nxc5 {[%emt 0:00:11]} (50... Kg7 $1 $11 {keeps the balance.}) 51. Kg5 {[%emt 0:00:31]} (51. Rh7 $1 $16 {[%cal Of4g5] Hoping for Kg5!} Ke8 52. Rxa7) 51... Kg7 $1 $11 {[%emt 0:02:04]} 52. Rh6 {[%emt 0:00:20]} b4 {[%emt 0:00:33]} 53. Rg6+ {[%emt 0:00:43]} Kf7 {[%emt 0:00:03]} 54. Rh6 {[%emt 0:00:26]} Nd7 {[%emt 0:01:28] ...c5 is the strong threat.} 55. f4 $2 {[%emt 0:00:34][%mdl 8192]} (55. Bxa7 $11 {and White is okay.} b3 56. Rh7+ (56. Bd4 c5 $17) 56... Ke8 57. Rh1 (57. Bd4 c5 $17)) 55... c5 $19 {[%emt 0:00:43]} 56. f5 {[%emt 0:00:30]} Nf8 {[%emt 0:00:02]} (56... cxd4 57. fxe6+ Ke8 58. exd7+ Kxd7 59. exd4 (59. Rd6+ $2 Kc7 $19) 59... Rxd4 60. Ra6 $11 (60. Kf5 b3 $11)) 57. fxe6+ $2 {[%emt 0:00:32]} (57. Ba1) 57... Nxe6+ {[%emt 0:00:08]} 58. Kf5 {[%emt 0:00:15]} Ng7+ {[%emt 0:00:15]} (58... Nxd4+ 59. exd4 Rxd4 60. e6+ Ke8 61. Rh8+ Ke7 62. Rh7+ Ke8 63. Rh8+ (63. Rxa7 b3 $11) 63... Ke7 64. Rh7+ Ke8 65. Rh8+ $11 (65. Rxa7 b3 $11)) 59. Ke4 {[%emt 0:00:18]} cxd4 {[%emt 0:00:03] KRN-KR} 60. Kd5 {[%emt 0:00:42]} Rc1 {[%emt 0:01:13] White must now prevent ...d3.} 61. exd4 {[%emt 0:00:21]} b3 {[%emt 0:00:09]} 62. Rh2 {[%emt 0:00:29]} Nf5 {[%emt 0:01:15]} 63. Rh7+ $2 {[%emt 0:00:24]} (63. Ke4 Ne7 64. Rb2) 63... Kg6 {[%emt 0:01:38]} 64. Rb7 {[%emt 0:00:22]} Ne3+ $2 {[%emt 0:00:07]} (64... Rb1 {...b2 would be deadly.} 65. Rxa7 Ne3+ 66. Ke4 Re1) 65. Ke6 {[%emt 0:00:36]} Nf5 $2 {[%emt 0:01:49]} (65... Rc6+ 66. Kd7 Rc3 67. e6 $15) (65... Rc3 $19 {aiming for ...Nc4.} 66. Rxa7 (66. d5 $2 Nc4 $19) 66... b2) 66. d5 $2 {[%emt 0:00:18][%mdl 8192]} (66. Kd5 $11) 66... Nd4+ {[%emt 0:00:14]} 67. Kd6 {[%emt 0:00:50]} a6 $2 {[%emt 0:00:46]} (67... Rc2 $19 {is more deadly.} 68. Rb4 b2) 68. Rb4 $17 {[%emt 0:00:47]} Nb5+ {[%emt 0:00:12]} 69. Ke6 $2 {[%emt 0:00:27]} (69. Ke7 $17 {is a better defense.}) 69... Nc7+ {[%emt 0:00:43]} 70. Kd6 {[%emt 0:00:07] [#]} Rc3 $1 {[%emt 0:00:14]} 71. e6 {[%emt 0:00:25] [#]} Kf5 $2 {[%emt 0:00:51]} ({Better is} 71... Ne8+ $1 $19 72. Ke5 Rg3) 72. e7 $15 {[%emt 0:01:07]} Ne8+ {[%emt 0:00:02]} 73. Kd7 {[%emt 0:00:03]} Nf6+ {[%emt 0:00:03]} 74. Kd8 {[%emt 0:00:34]} Rd3 {[%emt 0:00:40]} ({Resist} 74... Nxd5 75. e8=Q (75. e8=R $2 {too greedy.} Nxb4 76. Rf8+ Ke4 $19) 75... Nxb4 76. Qf8+ Ke4 77. Qxb4+ $16) 75. Kc8 {[%emt 0:00:19]} Rxd5 {[%emt 0:01:14]} (75... Nxd5 $2 76. e8=Q Rc3+ 77. Kb7 Nxb4 78. Qf8+ Ke4 79. Qxb4+ $18) 76. Rxb3 {[%emt 0:00:07]} Rxa5 {[%emt 0:00:31]} ({Black should try} 76... Ke6 $1 $15 77. Rb6+ Kxe7 78. Rxa6 Rc5+ 79. Kb7 Nd5) 77. Rf3+ $11 {[%emt 0:00:13] The position is equal.} Ke6 {[%emt 0:00:05]} 78. Rxf6+ $1 {[%emt 0:00:08][%mdl 64] Remove Defender, Promotion} Kxe7 $1 {[%emt 0:00:02] KR-KR} 79. Rc6 {[%emt 0:00:43]} Ra1 {[%emt 0:00:22]} 80. Kb7 {[%emt 0:00:18]} a5 {[%emt 0:00:09]} 81. Ka6 {[%emt 0:00:26]} a4 {[%emt 0:00:03]} 82. Ka5 {[%emt 0:00:13]} a3 {[%emt 0:00:05]} 83. Ka4 {[%emt 0:00:02]} a2 {[%emt 0:00:06] ( -> ...Rb1)} 84. Ka3 {[%emt 0:00:10]} Rd1 {[%emt 0:00:11]} 85. Kxa2 {[%emt 0:00:04]} Rd6 {[%emt 0:00:03]} 86. Rxd6 {[%emt 0:00:02]} Kxd6 {[%emt 0:00:04] Whites escaped into a draw.   Weighted Error Value: White=0.40/Black=0.17 (very precise)} 1/2-1/2

[Event "SixDays Budapest March GM-B 2023"]
[Site "Budapest"]
[Date "2023.03.25"]
[Round "2.2"]
[White "Royal, Shreyas"]
[Black "Varga, Csaba Zoltan"]
[Result "1/2-1/2"]
[ECO "D02"]
[WhiteElo "2452"]
[BlackElo "2278"]
[Annotator "TA"]
[PlyCount "117"]
[EventDate "2023.03.24"]
[EventType "tourn"]
[EventCountry "HUN"]
[SourceTitle "playchess.com"]
[Source "ChessBase"]
[SourceQuality "1"]
[TimeControl "5400+30"]

{[%evp 14,116,35,31,45,36,39,44,38,18,19,19,75,46,46,43,47,55,101,99,106,57,39,39,29,46,47,52,84,68,89,81,91,79,84,84,84,84,83,89,86,88,83,0,0,0,35,0,0,0,0,0,33,33,33,0,14,14,14,14,14,14,15,15,15,15,15,15,15,15,15,15,15,15,15,15,15,15,15,15,15,15,15,4,4,4,4,4,4,4,4,4,4,4,4,4,4,0,4,4,4,4,4,0,0]} 1. d4 {[%emt 0:00:34]} d5 {[%emt 0:06:27]} 2. Nf3 {[%emt 0:00:05]} c5 {[%emt 0:00:04]} 3. c4 {[%emt 0:00:07]} dxc4 {[%emt 0:00:04]} 4. e3 {[%emt 0:00:20]} cxd4 {[%emt 0:00:07]} 5. Bxc4 {[%emt 0:00:09]} Qc7 {[%emt 0:00:05]} 6. Qb3 {[%emt 0:00:56]} e6 {[%emt 0:11:42]} 7. O-O {[%emt 0:00:13]} Nc6 {[%emt 0:00:39]} 8. exd4 {[%emt 0:01:51] [#] Hoping for d5.} Nf6 {[%emt 0:00:31] D21: Queen's Gambit Accepted: 3 Nf3 sidelines.} 9. Nc3 {[%emt 0:01:13]} a6 {[%emt 0:00:05] And now ...Na5 would win.} 10. Bd3 {[%emt 0:08:30]} (10. d5 $2 Na5 11. dxe6 (11. Qa4+ $2 Bd7 $19) 11... fxe6 $19) 10... Be7 {[%emt 0:00:07] White is slightly better.} 11. Bg5 {[%emt 0:01:48]} O-O {[%emt 0:00:07]} 12. Rac1 {[%emt 0:01:10] [#]} Kh8 $146 {[%emt 0:02:45]} (12... Rd8 $11) ({Predecessor:} 12... Nxd4 13. Nxd4 Ng4 14. f4 Bxg5 15. Bxh7+ Kxh7 16. Ne4 Qxf4 17. Rxf4 Bxf4 18. Qh3+ Kg8 19. Qxg4 {½-½ Studer,N (2579)-Kurmann,O (2430) SUI World Cup Qual 2021 (3)}) 13. Ne4 {[%emt 0:08:24]} Nxe4 {[%emt 0:08:44]} 14. Bxe4 {[%emt 0:03:09]} Bxg5 {[%emt 0:00:21]} 15. Nxg5 {[%emt 0:00:06]} Qf4 {[%emt 0:00:23]} (15... h6 $14) 16. Qe3 {[%emt 0:00:07]} (16. Qh3 h6 17. Bxc6 bxc6 $14) (16. Nxh7 {keeps more tension.} Nxd4 17. Qe3 Rd8 18. Ng5) 16... Nxd4 {[%emt 0:01:37] aiming for ...Qxe3.} 17. Qxf4 {[%emt 0:00:05]} ({Wrong is} 17. Rxc8 $2 Raxc8 18. Nxf7+ Qxf7 $19) ({Better is} 17. Rcd1 $16 {[%cal Od1d4] Rxd4! is the strong threat.} Qxe3 18. fxe3) 17... Ne2+ $14 {[%emt 0:00:06]} 18. Kh1 {[%emt 0:00:04]} Nxf4 {[%emt 0:00:07]} 19. Nxh7 {[%emt 0:03:02]} Re8 {[%emt 0:02:00] Threatens to win with ...f5.} 20. Ng5 {[%emt 0:01:03]} f6 {[%emt 0:04:21]} 21. Nf7+ {[%emt 0:00:07]} Kg8 {[%emt 0:00:04]} 22. Nd6 {[%emt 0:02:26][%csl LRb7,LRe8] White has more active pieces. The black rooks are badly placed.} Rd8 {[%emt 0:00:32]} 23. Rxc8 {[%emt 0:13:45]} ({Don't play} 23. Bxb7 Bxb7 24. Nxb7 Rd2 $15) 23... Raxc8 {[%emt 0:00:14]} 24. Nxc8 {[%emt 0:00:04]} Rxc8 {[%emt 0:00:10]} 25. Bxb7 $16 {[%emt 0:00:05][%mdl 4096] Endgame KRB-KRN} Rb8 {[%emt 0:00:16]} 26. Bxa6 {[%emt 0:00:05]} Rxb2 {[%emt 0:00:05]} 27. Bc4 {[%emt 0:00:07]} Kf7 {[%emt 0:02:16]} 28. Kg1 {[%emt 0:04:00]} (28. g3 $16 Nd5 29. Kg1) 28... Rc2 $1 $11 {[%emt 0:03:17]} 29. Bb3 {[%emt 0:01:31]} Ne2+ $1 {[%emt 0:00:55]} 30. Kh1 {[%emt 0:00:06]} Rb2 {[%emt 0:03:21]} 31. Rd1 {[%emt 0:06:42]} Nc3 {[%emt 0:02:43]} 32. Re1 {[%emt 0:00:05]} Ne4 {[%emt 0:03:36][%mdl 64] [#] Deflection, Back Rank} 33. Bxe6+ {[%emt 0:06:15]} (33. Rxe4 $2 {leads to mate.} Rb1+) 33... Kxe6 $14 {[%emt 0:00:47] KRN-KR} 34. f3 {[%emt 0:00:06][%mdl 64] Pin} f5 {[%emt 0:01:52] The position is equal.} 35. fxe4 {[%emt 0:00:13]} Rxa2 {[%emt 0:00:24]} 36. exf5+ {[%emt 0:00:13]} Kxf5 $11 {[%emt 0:00:06] KR-KR} 37. h3 {[%emt 0:00:08]} g5 {[%emt 0:00:19]} 38. Kh2 {[%emt 0:00:04]} Ra3 {[%emt 0:02:25]} 39. Rf1+ {[%emt 0:00:22]} Kg6 {[%emt 0:00:06]} 40. Rf8 {[%emt 0:00:33]} Kg7 {[%emt 0:00:32]} 41. Rb8 {[%emt 0:00:07]} Kf6 {[%emt 0:01:13]} 42. Rb6+ {[%emt 0:00:07]} Ke5 {[%emt 0:00:34]} 43. Kg1 {[%emt 0:00:12]} Kf5 {[%emt 0:01:12]} 44. Rb5+ {[%emt 0:00:17]} Kf6 {[%emt 0:00:42]} 45. Rd5 {[%emt 0:00:32]} Kg6 {[%emt 0:01:34]} 46. Kf2 {[%emt 0:00:06]} Ra2+ {[%emt 0:00:18]} 47. Kf3 {[%emt 0:00:06]} Ra3+ {[%emt 0:00:11]} 48. Ke4 {[%emt 0:00:26]} (48. Kg4 $5 Ra4+ $8 49. Kg3 $14) 48... Rg3 {[%emt 0:03:17]} 49. Rd2 {[%emt 0:01:34]} Kf6 {[%emt 0:00:21]} 50. Re2 {[%emt 0:00:29]} Kg6 {[%emt 0:01:29]} 51. Ke5 {[%emt 0:00:08]} Ra3 {[%emt 0:00:19]} 52. Rd2 {[%emt 0:00:04]} Re3+ {[%emt 0:00:25]} 53. Kd4 {[%emt 0:00:04]} Rg3 {[%emt 0:03:03]} 54. Rf2 {[%emt 0:00:06]} Ra3 {[%emt 0:00:34]} 55. Rd2 {[%emt 0:00:05]} g4 {[%emt 0:01:08]} 56. Ke4 {[%emt 0:00:06]} gxh3 {[%emt 0:00:05]} 57. gxh3 {[%emt 0:00:04]} Rxh3 {[%emt 0:00:07]} 58. Rd3 {[%emt 0:00:02]} Rxd3 {[%emt 0:00:10]} 59. Kxd3 {Weighted Error Value: White=0.07 (flawless) /Black=0.05 (flawless)} 1/2-1/2

[Event "SixDays Budapest March GM-B 2023"]
[Site "Budapest"]
[Date "2023.03.25"]
[Round "2.3"]
[White "Joshua, A P"]
[Black "Moksh Amit Doshi"]
[Result "0-1"]
[ECO "B90"]
[WhiteElo "2300"]
[BlackElo "2388"]
[Annotator "TA"]
[PlyCount "96"]
[EventDate "2023.03.24"]
[EventType "tourn"]
[EventCountry "HUN"]
[SourceTitle "playchess.com"]
[Source "ChessBase"]
[SourceQuality "1"]
[TimeControl "5400+30"]

{[%evp 11,96,0,6,-22,-19,-58,-15,-16,-18,-19,-14,-14,18,22,161,161,268,262,252,145,141,121,123,122,119,109,121,121,150,133,139,145,150,147,155,171,158,165,150,166,158,163,156,143,142,155,370,393,452,437,515,273,278,279,429,440,454,454,555,558,597,429,533,106,69,66,225,225,202,200,181,99,278,-167,-177,-154,-75,-1701,-1656,-1481,-1122,-1057,-1032,-12844,-12844,-12844,-12844]} 1. e4 {[%emt 0:02:56]} c5 {[%emt 0:01:48]} 2. Nf3 {[%emt 0:00:16]} d6 {[%emt 0:00:30]} 3. d4 {[%emt 0:00:47]} cxd4 {[%emt 0:00:09]} 4. Nxd4 {[%emt 0:00:19]} Nf6 {[%emt 0:00:09]} 5. Nc3 {[%emt 0:00:22]} a6 {[%emt 0:00:09]} 6. Rg1 {[%emt 0:01:51]} b5 {[%emt 0:05:37][%cal Bb7b5,Bb5b4][%mdl 32]} 7. a4 {[%emt 0:01:41] B90: Sicilian Najdorf: Unusual White 6th moves, 6 Be3 Ng4 and 6 Be3 e5.} b4 {[%emt 0:02:48]} 8. Nd5 {[%emt 0:00:37]} e6 {[%emt 0:00:34]} (8... Nxe4 {with more complications.} 9. Qe2 Nc5 10. g4 Bb7) 9. Nxf6+ {[%emt 0:00:57] The position is equal.} Qxf6 {[%emt 0:00:32]} 10. Be3 {[%emt 0:01:13]} Bb7 {[%emt 0:02:18]} 11. Qd2 {[%emt 0:00:56] [#]} d5 $146 {[%emt 0:06:56]} ({Predecessor:} 11... Bxe4 12. f3 Bb7 13. Qxb4 Qe7 14. Qb6 Qd7 15. O-O-O Qc8 16. Nb3 Nc6 17. Bd4 e5 {1-0 Nepomniachtchi,I (2784)-Giri,A (2764) Legends of Chess Final 2020 (1.25)}) 12. O-O-O {[%emt 0:07:37] Threatens to win with exd5.} Be7 {[%emt 0:07:36]} (12... Nd7 $11) 13. Nf3 $1 $18 {[%emt 0:17:01] aiming for Bg5.} e5 {[%emt 0:15:35]} (13... Qg6 {keeps fighting.}) 14. exd5 {[%emt 0:09:01]} Qd6 {[%emt 0:01:47]} 15. Bc4 {[%emt 0:03:34]} (15. Nxe5 $1 $18 Qxe5 16. d6 Qxd6 17. Qxd6 Bxd6 18. Rxd6) 15... O-O {[%emt 0:00:48]} 16. Ng5 {[%emt 0:02:05]} Bxg5 {[%emt 0:02:59]} 17. Bxg5 {[%emt 0:00:11]} Nd7 {[%emt 0:00:17]} 18. Be3 {[%emt 0:05:10]} Rac8 {[%emt 0:02:40]} 19. Bb3 {[%emt 0:01:44]} Rfd8 {[%emt 0:00:07]} 20. Kb1 {[%emt 0:01:13]} a5 {[%emt 0:05:16]} 21. Rge1 {[%emt 0:02:07]} h6 {[%emt 0:03:06]} 22. f4 {[%emt 0:01:06]} exf4 {[%emt 0:08:20]} 23. Bxf4 {[%emt 0:00:49]} Qg6 {[%emt 0:00:08]} 24. Be3 {[%emt 0:07:19]} Nf6 {[%emt 0:04:02]} 25. Qd3 {[%emt 0:07:02]} Qxd3 {[%emt 0:05:00]} 26. Rxd3 {[%emt 0:00:32]} Nxd5 {[%emt 0:00:21]} 27. Red1 {[%emt 0:05:54]} Re8 {[%emt 0:00:10]} 28. Bxh6 {[%emt 0:11:21]} (28. Bxd5 Bxd5 29. Rxd5 Rxe3 $14) 28... Ne7 $2 {[%emt 0:04:28]} (28... gxh6 $16 {was worth a try.} 29. Bxd5 Ba8) 29. Bg5 {[%emt 0:01:29] Hoping for Rd7.} Bxg2 {[%emt 0:02:29]} 30. Rd7 {[%emt 0:01:32]} Kf8 {[%emt 0:00:05]} 31. Re1 {[%emt 0:02:25]} f6 {[%emt 0:04:51]} 32. Bf4 {[%emt 0:01:38]} Bc6 {[%emt 0:00:20]} (32... Bh3 {was called for.} 33. Ra7 Rcd8 34. Rxa5 Nf5 35. Rxe8+ Kxe8) 33. Ra7 {[%emt 0:00:59] Strongly threatening Bd6.} Rcd8 {[%emt 0:00:23] Dodges Bd6} 34. Be3 {[%emt 0:00:50]} (34. Rxa5 Nd5 35. Bg3 Rxe1+ 36. Bxe1 Ke7 $18) 34... f5 {[%emt 0:01:24]} 35. Bc5 {[%emt 0:01:05][%cal Rc5e7]} Be4 {[%emt 0:00:04]} 36. Rxa5 {[%emt 0:00:32]} g5 {[%emt 0:00:15]} 37. Be3 $2 {[%emt 0:00:20] A strong pair of Bishops.} (37. Ra7 $18 {has better winning chances.}) 37... Nc6 $16 {[%emt 0:01:22]} 38. Rb5 {[%emt 0:00:42][%cal Ob5b7]} f4 $2 {[%emt 0:01:04]} (38... Nd4 $14 39. Bxd4 (39. Rxb4 Nxb3 40. Rxb3 Rc8 $14) 39... Rxd4) 39. Bc5+ $18 {[%emt 0:00:08]} Kg7 {[%emt 0:00:08][%cal Oe4c2] White must now prevent ...Bxc2+!} 40. Rg1 {[%emt 0:00:28]} (40. Bxb4 $2 Nxb4 41. Rg1 f3 42. Rxb4 f2 $19) 40... Kf6 {[%emt 0:02:23] [#]} 41. Rb7 {[%emt 0:01:39]} ({Don't take} 41. Bxb4 $6 Nxb4 42. Rxb4 Rb8 43. Rxb8 Rxb8 $11) (41. h4 $1 $18) 41... Re5 {[%emt 0:03:44]} (41... Bd5 $16 {might work better.}) 42. Bxb4 $4 {[%emt 0:01:16][%mdl 8192]} (42. Rf7+ $18 {is the narrow road to win.} Kg6 43. Rxf4) 42... Nxb4 $19 {[%emt 0:00:19]} 43. Rxb4 {[%emt 0:00:05][%cal Oh2h4] [#]} f3 {[%emt 0:00:04] Black is more active.} ({Black should try} 43... Kf5 $1 {...f3 would be deadly.} 44. Kc1 Rh8) 44. Kc1 $2 {[%emt 0:00:23][%mdl 8192]} (44. Rf1 $17) 44... f2 {[%emt 0:00:21][%cal Rf2g1] Black is clearly winning.} 45. Rf1 {[%emt 0:00:12]} Bf3 {[%emt 0:00:04]} 46. Rb6+ {[%emt 0:00:46]} Ke7 {[%emt 0:00:35] ( -> ...Re1+)} 47. Re6+ {[%emt 0:00:17]} Rxe6 {[%emt 0:00:05]} 48. Bxe6 {[%emt 0:00:03]} Kxe6 {[%emt 0:00:09] Weighted Error Value: White=0.70/Black=0.57} 0-1